bitfinex/quotes_SOLUSD_20240727
["timestamp","ask_amount","ask_price","bid_price","bid_amount"]
[1722090272918,5.3671,186.32,186.27,0.7764278]
[1722090273113,5.3668,186.33,186.27,6.1448278]
[1722090273306,5.3668,186.33,186.28,5.3681]
[1722090273505,5.3671,186.32,186.27,6.1448278]
[1722090273810,5.3668,186.33,186.27,6.1448278]
[1722090275815,5.3671,186.32,186.27,0.7764278]
[1722090276519,5.3668,186.33,186.27,6.1447278]
[1722090277129,5.3668,186.33,186.28,5.3682]
[1722090278211,5.3668,186.33,186.27,6.1449278]
[1722090278417,5.3671,186.32,186.27,0.7764278]
[1722090279204,13.4154,186.36,186.27,0.7764278]
[1722090279413,5.3679,186.3,186.27,0.7764278]
[1722090280023,5.3674,186.31,186.27,0.7764278]
[1722090280628,5.3677,186.3,186.27,0.7764278]
[1722090281134,17.8474,186.31,186.27,0.7764278]
[1722090282013,12.48,186.31,186.27,0.7764278]
[1722090282206,17.8474,186.31,186.27,0.7764278]
[1722090283438,12.48,186.33,186.27,0.7764278]
[1722090283620,12.48,186.33,186.28,5.3681]
[1722090284112,35.50906553,186.4,186.28,5.3681]
[1722090284327,9.68251463,186.39,186.29,12.48]
[1722090284518,12.48,186.38,186.32,5.3671]
[1722090284726,5.3659,186.37,186.32,5.367]
[1722090284921,17.8459,186.37,186.31,5.3673]
[1722090285121,5.366,186.36,186.31,5.3673]
[1722090285325,17.8456,186.37,186.31,5.3673]
[1722090285516,12.48,186.37,186.33,5.3667]
[1722090285722,12.48,186.37,186.32,5.367]
[1722090286213,20.0,186.45,186.32,5.367]
[1722090286214,5.3648,186.4,186.34,5.3664]
[1722090286413,12.48,186.39,186.33,5.3667]
[1722090286638,12.48,186.37,186.32,5.367]
[1722090286820,12.48,186.36,186.33,5.3667]
[1722090287015,5.3654,186.38,186.31,15.9497]
[1722090287233,5.54616277,186.45,186.31,15.9497]
[1722090287417,5.3641,186.43,186.36,5.3656]
[1722090287631,5.3636,186.45,186.34,6.3715]
[1722090287839,5.3636,186.44,186.39,5.365]
[1722090288154,5.3636,186.44,186.35,1.07294048]
[1722090288155,5.3636,186.44,186.38,5.3653]
[1722090288527,5.3636,186.44,186.34,6.3715]
[1722090288528,13.4049,186.5,186.4,5.3647]
[1722090288731,9.67752482,186.49,186.36,15.9497]
[1722090288944,9.67752482,186.48,186.36,17.02258781]
[1722090289120,9.67752482,186.47,186.36,17.02258781]
[1722090289448,38.3449,186.5,186.36,17.02258781]
[1722090289659,9.67740857,186.49,186.44,5.3636]
[1722090289945,44.26971144,186.56,186.38,1.07263778]
[1722090290150,44.26971144,186.56,186.46,5.363]
[1722090290151,5.3617,186.51,186.46,5.363]
[1722090290331,5.3612,186.53,186.47,5.3626]
[1722090290523,5.3613,186.52,186.4,1.07234838]
[1722090290845,5.362,186.5,186.4,45.0]
[1722090291149,13.4035,186.52,186.39,15.9497]
[1722090291346,5.3629,186.47,186.39,15.9497]
[1722090291552,13.4035,186.52,186.39,15.9497]
[1722090291720,5.3628,186.47,186.41,5.3645]
[1722090291926,13.4035,186.52,186.39,15.9497]
[1722090292130,5.3633,186.46,186.39,15.9497]
[1722090292342,13.4035,186.52,186.39,15.9497]
[1722090292650,20.0,186.51,186.39,15.9497]
[1722090293447,5.3624,186.49,186.43,5.3639]
[1722090293651,20.0,186.51,186.44,5.3636]
[1722090293969,5.3618,186.51,186.44,5.3636]
[1722090294156,20.0,186.5,186.39,15.9497]
[1722090294328,5.3621,186.5,186.44,5.3635]
[1722090294531,20.0,186.52,186.4,1.0725793]
[1722090294833,20.0,186.56,186.4,46.0725793]
[1722090295027,20.0,186.56,186.45,6.3715]
[1722090295247,5.3608,186.54,186.49,5.3621]
[1722090295445,5.3604,186.56,186.5,5.3618]
[1722090295645,5.3605,186.55,186.49,5.3621]
[1722090295827,5.3608,186.54,186.48,5.3624]
[1722090296025,38.3383,186.6,186.48,5.3624]
[1722090296233,24.94,186.57,186.47,15.9497]
[1722090296437,5.3613,186.53,186.47,21.3124]
[1722090296666,24.94,186.57,186.48,5.3624]
[1722090297148,5.361,186.54,186.49,5.3621]
[1722090297455,5.3605,186.55,186.5,5.3618]
[1722090298059,55.08512535,186.63,186.47,15.9497]
[1722090298060,6.1883,186.63,186.48,1.07222234]
[1722090298267,5.3587,186.61,186.56,5.3599]
[1722090298446,5.3585,186.62,186.56,5.3601]
[1722090298636,38.3339,186.66,186.51,1.07222234]
[1722090298959,5.359,186.6,186.54,5.3606]
[1722090299551,5.3581,186.64,186.57,5.3597]
[1722090299744,13.3939,186.66,186.57,5.3597]
[1722090299745,5.3582,186.63,186.57,5.3597]
[1722090300242,24.94,186.66,186.51,23.39302346]
[1722090300448,13.398,186.6,186.51,22.3212]
[1722090300742,24.94,186.62,186.51,22.3212]
[1722090300955,38.3334,186.66,186.55,5.3604]
[1722090301263,5.3605,186.55,186.51,22.3212]
[1722090301558,5.3602,186.56,186.51,22.3212]
[1722090302052,38.3371,186.61,186.51,22.3212]
[1722090302357,5.3604,186.56,186.51,22.3212]
[1722090302854,5.3605,186.55,186.51,22.3212]
[1722090303054,25.3593,186.6,186.51,22.3212]
[1722090303268,25.3593,186.6,186.54,5.3605]
[1722090303637,5.3586,186.62,186.55,5.3602]
[1722090303842,5.3586,186.62,186.56,5.3601]
[1722090304051,5.3582,186.63,186.57,5.3599]
[1722090304252,13.3919,186.68,186.58,5.3593]
[1722090304752,5.3582,186.63,186.57,5.3598]
[1722090304943,13.3919,186.68,186.59,5.3593]
[1722090305148,24.94,186.69,186.59,15.9497]
[1722090305349,5.3581,186.64,186.59,15.9497]
[1722090305558,5.3584,186.63,186.59,15.9497]
[1722090305758,38.3313,186.69,186.59,15.9497]
[1722090305957,5.359,186.61,186.59,15.9497]
[1722090306370,5.359,186.6,186.55,15.288]
[1722090306575,24.94,186.66,186.55,15.288]
[1722090306757,5.3587,186.62,186.55,20.6482]
[1722090307064,5.3587,186.61,186.55,20.6482]
[1722090307252,5.3591,186.6,186.55,15.288]
[1722090307558,20.0,186.65,186.55,15.288]
[1722090307858,5.3585,186.62,186.56,5.3601]
[1722090308245,5.3582,186.63,186.57,5.3599]
[1722090308673,25.3578,186.65,186.55,16.3598109]
[1722090308850,24.94,186.69,186.57,1.0718109]
[1722090309053,5.3575,186.66,186.6,5.3589]
[1722090309247,5.3577,186.65,186.59,5.3593]
[1722090309472,5.358,186.64,186.58,5.3596]
[1722090311939,38.3335,186.66,186.55,15.288]
[1722090312171,38.3335,186.66,186.56,5.3601]
[1722090312172,20.0,186.65,186.56,5.3601]
[1722090312870,13.3954,186.64,186.55,15.288]
[1722090313049,5.3595,186.59,186.55,15.288]
[1722090313244,24.94,186.63,186.55,15.288]
[1722090313557,24.94,186.63,186.51,27.0209]
[1722090313558,5.3601,186.57,186.51,27.0209]
[1722090314341,5.3596,186.59,186.51,21.6595]
[1722090314541,5.3597,186.58,186.52,5.3612]
[1722090314845,5.3599,186.57,186.52,5.3612]
[1722090315046,5.3599,186.57,186.51,27.0211]
[1722090315247,5.3602,186.56,186.51,21.6595]
[1722090315980,5.3611,186.53,186.47,26.6745]
[1722090316272,5.3611,186.53,186.47,21.3118]
[1722090316485,5.3615,186.52,186.47,15.288]
[1722090316961,24.94,186.57,186.47,20.6507]
[1722090316962,5.3611,186.53,186.47,20.6507]
[1722090317269,24.94,186.57,186.48,5.3623]
[1722090317768,5.3617,186.51,186.47,15.288]
[1722090317973,5.3619,186.5,186.47,15.288]
[1722090318187,5.3617,186.51,186.47,15.288]
[1722090318349,5.3609,186.54,186.48,5.3622]
[1722090318554,5.3606,186.55,186.48,5.3622]
[1722090319176,20.0,186.56,186.47,16.360304]
[1722090319348,5.3594,186.59,186.53,5.3607]
[1722090319549,5.3596,186.58,186.5,6.0238]
[1722090319774,5.3593,186.6,186.53,5.361]
[1722090319971,5.3594,186.59,186.53,5.361]
[1722090320277,5.3594,186.59,186.54,5.3607]
[1722090320468,38.3334,186.66,186.52,1.07200401]
[1722090320771,38.3334,186.66,186.53,15.288]
[1722090320772,5.3588,186.61,186.53,15.288]
[1722090320979,38.3334,186.66,186.55,5.3604]
[1722090320980,5.359,186.6,186.55,5.3604]
[1722090321148,5.359,186.6,186.53,15.288]
[1722090321149,24.94,186.6,186.53,15.288]
[1722090321356,5.3607,186.54,186.5,6.0238]
[1722090321573,5.3605,186.55,186.5,6.0238]
[1722090321878,5.3605,186.55,186.49,5.3622]
[1722090322051,5.3608,186.54,186.48,15.288]
[1722090322257,5.3608,186.54,186.48,20.6503]
[1722090322454,5.3599,186.57,186.51,5.3616]
[1722090323162,5.3599,186.57,186.52,5.3613]
[1722090323678,5.3602,186.56,186.5,5.3619]
[1722090323850,5.3602,186.56,186.48,15.288]
[1722090323851,0.17,186.55,186.42,15.288]
[1722090324047,0.17,186.55,186.45,5.3633]
[1722090324048,5.3615,186.52,186.45,5.3633]
[1722090324251,5.3617,186.51,186.45,5.3633]
[1722090324450,13.4018,186.55,186.46,5.3629]
[1722090324650,13.4018,186.55,186.45,5.3633]
[1722090324868,5.3619,186.5,186.44,5.3636]
[1722090325083,5.3623,186.49,186.42,15.288]
[1722090325777,5.3623,186.49,186.43,20.0]
[1722090325959,13.4018,186.55,186.42,15.288]
[1722090325960,13.4034,186.52,186.42,15.288]
[1722090326161,5.3629,186.47,186.42,15.288]
[1722090326359,5.3637,186.44,186.39,5.365]
[1722090326554,5.3633,186.46,186.39,5.365]
[1722090326875,13.4056,186.49,186.39,5.365]
[1722090327177,5.364,186.43,186.37,21.5371]
[1722090327373,5.3643,186.42,186.33,16.1715]
[1722090329282,5.3643,186.42,186.37,5.3656]
[1722090329706,5.3643,186.42,186.36,5.3659]
[1722090329999,65.11,186.48,186.36,5.3659]
[1722090330000,5.3645,186.41,186.36,5.3659]
[1722090330208,5.3642,186.42,186.36,5.3659]
[1722090330373,5.3638,186.44,186.33,17.24458904]
[1722090330575,13.4076,186.47,186.41,5.3644]
[1722090330576,5.363,186.47,186.41,5.3644]
[1722090331192,20.0,186.48,186.35,1.07288572]
[1722090331399,24.94,186.51,186.36,0.34]
[1722090331581,5.3619,186.5,186.44,5.3636]
[1722090331785,5.3623,186.49,186.43,5.3639]
[1722090331985,5.3629,186.47,186.4,5.3646]
[1722090332174,13.406,186.49,186.37,5.3654]
[1722090332381,5.3639,186.43,186.37,5.3654]
[1722090332705,5.3637,186.44,186.33,17.24446791]
[1722090332880,5.3632,186.46,186.39,5.365]
[1722090333083,5.3632,186.46,186.4,5.3646]
[1722090333275,5.3632,186.46,186.33,17.24446791]
[1722090333594,13.406,186.49,186.39,5.365]
[1722090333595,5.3633,186.45,186.39,5.365]
[1722090334304,5.3631,186.46,186.4,5.3646]
[1722090334800,5.3642,186.42,186.36,5.3659]
[1722090335188,5.3642,186.42,186.37,5.3655]
[1722090335397,5.3642,186.42,186.36,5.3659]
[1722090335598,5.3646,186.41,186.33,16.1715]
[1722090335798,5.3642,186.42,186.36,5.3659]
[1722090336505,13.4078,186.46,186.36,5.3659]
[1722090336506,5.3646,186.41,186.36,5.3659]
[1722090337207,5.3648,186.4,186.33,16.1715]
[1722090337509,5.3642,186.42,186.36,5.3657]
[1722090338400,0.17,186.43,186.33,16.1715]
[1722090338712,24.94,186.42,186.28,16.1715]
[1722090339035,24.94,186.42,186.31,5.3672]
[1722090339036,58.5814,186.41,186.31,5.3672]
[1722090339794,5.3654,186.38,186.32,5.367]
[1722090340384,5.3654,186.38,186.28,16.1715]
[1722090340589,5.3651,186.39,186.33,5.3667]
[1722090340784,5.3645,186.41,186.35,5.3662]
[1722090341009,5.3645,186.41,186.28,16.1715]
[1722090341010,5.3642,186.42,186.37,5.3656]
[1722090341212,20.0,186.43,186.38,5.3652]
[1722090341508,20.0,186.46,186.37,5.3656]
[1722090341716,5.3643,186.42,186.36,5.3659]
[1722090342011,5.3639,186.43,186.37,5.3655]
[1722090342836,5.3637,186.44,186.39,5.3649]
[1722090343020,5.364,186.43,186.38,5.3653]
[1722090343218,5.3642,186.42,186.36,5.3659]
[1722090343422,5.3639,186.43,186.3,51.01300178]
[1722090343719,61.3127,186.51,186.33,24.94]
[1722090343930,61.3127,186.51,186.34,46.2428668]
[1722090344134,61.3127,186.51,186.41,5.3644]
[1722090344514,5.3633,186.46,186.4,5.3648]
[1722090344715,5.3633,186.46,186.35,16.1715]
[1722090344716,13.4062,186.49,186.35,16.1715]
[1722090344911,5.3644,186.42,186.36,5.3656]
[1722090345623,5.3644,186.42,186.37,5.3656]
[1722090345930,5.3644,186.42,186.36,5.3658]
[1722090346615,13.4074,186.47,186.35,16.1715]
[1722090346616,5.3645,186.41,186.35,16.1715]
[1722090346821,5.3645,186.41,186.35,5.3661]
[1722090347022,5.3648,186.4,186.35,5.3661]
[1722090347314,13.4074,186.47,186.36,5.3659]
[1722090347514,5.3642,186.42,186.36,5.3659]
[1722090347919,45.0,186.46,186.35,5.3661]
[1722090347920,5.3645,186.41,186.35,5.3661]
[1722090348324,58.3491,186.45,186.33,5.3665]
[1722090348511,5.3653,186.38,186.33,5.3665]
[1722090349524,0.17,186.44,186.3,30.3676]
[1722090349525,6.4381,186.41,186.3,30.3676]
[1722090349821,5.3658,186.37,186.31,5.3673]
[1722090350221,5.3653,186.38,186.32,5.3668]
[1722090350428,5.3653,186.38,186.33,5.3667]
[1722090350630,5.3653,186.38,186.32,5.367]
[1722090351042,5.3657,186.37,186.32,5.367]
[1722090351427,5.3654,186.38,186.32,5.367]
[1722090351848,5.3657,186.37,186.31,5.3673]
[1722090352142,5.3659,186.36,186.31,5.3673]
[1722090353223,5.3657,186.37,186.31,5.3673]
[1722090353439,5.366,186.36,186.3,30.3676]
[1722090353813,5.3662,186.35,186.3,25.0]
[1722090354025,5.3662,186.35,186.3,30.3676]
[1722090354729,5.3662,186.35,186.3,25.0]
[1722090354937,13.4144,186.37,186.3,25.0]
[1722090355249,20.17,186.36,186.3,25.0]
[1722090355553,5.3668,186.33,186.3,25.0]
[1722090355720,5.3671,186.32,186.3,25.0]
[1722090356245,5.3671,186.32,186.19,24.94]
[1722090356246,5.3671,186.32,186.15,160.09222044]
[1722090356449,20.17,186.36,186.12,387.4]
[1722090356450,5.3668,186.33,186.2,24.94]
[1722090356749,5.3668,186.33,186.21,21.07359344]
[1722090357759,1.07353351,186.35,186.22,45.0]
[1722090358051,5.3667,186.34,186.22,45.0]
[1722090358841,5.3668,186.33,186.22,45.0]
[1722090359353,5.3666,186.34,186.23,17.48879758]
[1722090359548,5.3666,186.34,186.24,45.0]
[1722090360239,5.3668,186.33,186.24,45.0]
[1722090360440,1.07353351,186.35,186.24,45.0]
[1722090360644,20.0,186.36,186.24,45.0]
[1722090360645,5.3671,186.32,186.24,45.0]
[1722090360847,20.17,186.36,186.24,45.0]
[1722090361152,5.3671,186.32,186.24,45.0]
[1722090363546,5.3668,186.33,186.24,45.0]
[1722090363748,20.0,186.36,186.24,46.07344944]
[1722090363948,5.3682,186.28,186.2,16.4152]
[1722090364134,5.368,186.29,186.2,16.4152]
[1722090364332,5.3677,186.3,186.2,16.4152]
[1722090364635,5.3683,186.28,186.2,16.4152]
[1722090364832,14.49123351,186.32,186.2,16.4152]
[1722090365037,5.3687,186.27,186.16,26.01375475]
[1722090365239,5.3687,186.27,186.16,1.07375475]
[1722090366265,0.17,186.31,186.16,1.07375475]
[1722090366426,20.17,186.31,186.15,16.4152]
[1722090366628,71.01353351,186.3,186.15,16.4152]
[1722090366847,5.3689,186.26,186.15,16.4152]
[1722090367239,20.0,186.31,186.16,1.0739773]
[1722090367445,5.3679,186.3,186.16,1.0739773]
[1722090367658,5.368,186.29,186.16,1.0739773]
[1722090367943,5.368,186.29,186.17,0.34]
[1722090368152,5.368,186.29,186.18,1.07374296]
[1722090368333,5.368,186.29,186.19,0.17]
[1722090369332,25.3675,186.31,186.19,0.17]
[1722090369555,20.0,186.31,186.18,0.17]
[1722090369763,21.07353351,186.32,186.18,1.24374274]
[1722090369939,21.07353351,186.32,186.18,46.24374274]
[1722090370648,5.3679,186.29,186.18,46.24374274]
[1722090371237,5.3673,186.32,186.19,20.17]
[1722090371434,5.3674,186.31,186.2,45.17]
[1722090371651,21.6003,186.35,186.21,1.07368515]
[1722090371851,21.6003,186.35,186.22,0.34]
[1722090372047,21.6003,186.35,186.24,15.9717]
[1722090372351,26.9666,186.35,186.25,45.0]
[1722090372857,5.3665,186.34,186.25,45.0]
[1722090373433,5.3665,186.34,186.26,1.07346363]
[1722090373633,5.3665,186.34,186.25,45.0]
[1722090374039,5.3662,186.35,186.25,46.07342364]
[1722090374243,5.3662,186.35,186.25,45.0]
[1722090374476,5.3665,186.34,186.26,0.17]
[1722090374637,1.07353351,186.39,186.25,45.0]
[1722090374837,5.3668,186.33,186.25,45.0]
[1722090375252,5.3676,186.31,186.25,45.0]
[1722090375447,5.3676,186.31,186.24,15.9717]
[1722090375767,24.94,186.34,186.2,17.0453775]
[1722090375934,20.0,186.33,186.2,17.0453775]
[1722090376341,1.07353351,186.32,186.2,15.9717]
[1722090376540,5.3679,186.3,186.2,15.9717]
[1722090376866,5.368,186.29,186.21,45.0]
[1722090377039,5.3677,186.3,186.21,45.0]
[1722090377641,20.0,186.33,186.21,45.0]
[1722090377642,5.368,186.29,186.21,45.0]
[1722090378143,1.07353351,186.32,186.21,45.0]
[1722090378968,21.07353351,186.33,186.2,17.0454434]
[1722090379167,5.368,186.29,186.24,5.3692]
[1722090379465,21.07353351,186.33,186.25,5.3691]
[1722090379667,1.07353351,186.32,186.25,5.3691]
[1722090379850,20.0,186.33,186.25,5.3691]
[1722090380464,5.3679,186.3,186.24,5.3693]
[1722090380671,5.3679,186.3,186.25,5.369]
[1722090380972,5.3673,186.32,186.26,5.3685]
[1722090381356,5.3673,186.32,186.27,5.3685]
[1722090381666,20.0,186.33,186.27,5.3685]
[1722090381667,25.367,186.33,186.27,5.3685]
[1722090381838,5.3671,186.32,186.27,5.3685]
[1722090382039,1.07353351,186.32,186.2,15.9717]
[1722090382249,5.3679,186.3,186.25,5.3691]
[1722090382472,5.3676,186.31,186.25,5.3691]
[1722090382967,5.3677,186.3,186.25,5.3691]
[1722090383338,5.3674,186.31,186.25,5.3691]
[1722090383946,5.3677,186.3,186.25,5.3691]
[1722090384156,5.3679,186.29,186.24,5.3694]
[1722090384456,5.3677,186.3,186.24,5.3694]
[1722090384863,5.3673,186.32,186.27,5.3685]
[1722090385452,5.3668,186.33,186.28,5.3682]
[1722090385867,5.3665,186.34,186.28,5.3682]
[1722090386167,20.0,186.36,186.22,24.94]
[1722090386477,20.0,186.37,186.28,5.3681]
[1722090386672,20.0,186.37,186.23,66.24349288]
[1722090386673,1.07353351,186.36,186.26,5.3685]
[1722090386847,5.3673,186.32,186.26,5.3685]
[1722090387457,5.3668,186.33,186.27,5.3684]
[1722090387865,13.4154,186.36,186.25,5.369]
[1722090388174,5.3671,186.32,186.26,5.3685]
[1722090388349,5.3671,186.32,186.27,5.3685]
[1722090389168,5.3669,186.33,186.27,5.3685]
[1722090389675,13.4154,186.36,186.27,5.3685]
[1722090389676,5.3671,186.32,186.27,5.3685]
[1722090391981,5.3661,186.36,186.24,1.07354167]
[1722090392181,5.3661,186.36,186.3,5.3674]
[1722090392759,1.07353351,186.38,186.29,5.3679]
[1722090392962,1.07353351,186.38,186.24,20.0]
[1722090392963,5.3668,186.33,186.24,20.0]
[1722090393164,5.3668,186.33,186.25,45.0]
[1722090393371,5.3671,186.32,186.27,5.3684]
[1722090393662,5.3674,186.31,186.26,5.3687]
[1722090393864,5.3674,186.31,186.22,24.94]
[1722090393865,5.3677,186.3,186.19,24.94]
[1722090394186,5.3679,186.29,186.24,5.3693]
[1722090394357,5.3677,186.3,186.24,5.3693]
[1722090394564,5.3677,186.3,186.25,5.369]
[1722090394966,5.3674,186.31,186.26,5.3688]
[1722090395356,38.356,186.35,186.21,1.07361183]
[1722090395566,20.0,186.34,186.21,46.07361183]
[1722090396186,5.3674,186.31,186.26,5.3688]
[1722090396481,5.3672,186.32,186.27,5.3684]
[1722090396689,5.3672,186.32,186.26,5.3687]
[1722090397581,1.07353351,186.32,186.21,45.0]
[1722090397780,5.3683,186.28,186.22,5.3697]
[1722090398378,5.369,186.26,186.2,21.3421]
[1722090398585,5.3692,186.25,186.2,5.3704]
[1722090399105,5.3692,186.25,186.17,1.07400902]
[1722090399106,5.3682,186.28,186.22,5.3698]
[1722090399386,5.3682,186.28,186.23,5.3696]
[1722090400277,5.368,186.29,186.23,5.3696]
[1722090400484,5.3682,186.28,186.23,5.3696]
[1722090402376,5.3677,186.3,186.24,5.3693]
[1722090402579,22.8473,186.32,186.24,5.3693]
[1722090402758,5.368,186.29,186.24,5.3693]
[1722090402966,5.3683,186.28,186.23,5.3696]
[1722090403166,17.8483,186.28,186.22,17.8499]
[1722090403564,17.848,186.29,186.24,5.3693]
[1722090403764,5.368,186.29,186.24,5.3693]
[1722090404293,5.3685,186.27,186.22,5.3698]
[1722090405064,5.3685,186.27,186.21,12.48]
[1722090405065,17.8483,186.28,186.23,5.3695]
[1722090405273,5.3683,186.28,186.23,5.3695]
[1722090405470,5.368,186.29,186.23,12.48]
[1722090405783,12.48,186.3,186.24,5.3691]
[1722090405987,17.8479,186.3,186.25,5.3691]
[1722090406699,22.8473,186.32,186.22,12.48]
[1722090406700,5.3688,186.27,186.22,12.48]
[1722090406867,17.8484,186.28,186.22,5.3697]
[1722090407071,5.3685,186.27,186.22,5.3697]
[1722090407494,12.48,186.28,186.22,5.3697]
[1722090407495,17.8483,186.28,186.22,5.3697]
[1722090407871,17.8486,186.27,186.22,5.3697]
[1722090408073,18.92213351,186.27,186.22,5.3697]
[1722090408291,17.8486,186.27,186.22,5.3697]
[1722090408668,12.48,186.26,186.16,15.8837]
[1722090408995,17.8492,186.25,186.2,5.3705]
[1722090409998,17.8492,186.25,186.19,5.3707]
[1722090410295,17.8492,186.25,186.2,5.3705]
[1722090413066,25.8997,186.3,186.19,12.48]
[1722090413067,12.48,186.26,186.19,12.48]
[1722090413274,5.3686,186.27,186.22,5.3699]
[1722090413585,12.48,186.26,186.22,5.3699]
[1722090413779,12.48,186.26,186.21,5.3702]
[1722090414501,17.8488,186.26,186.21,5.3702]
[1722090414866,63.3397,186.3,186.19,12.48]
[1722090415070,63.3397,186.3,186.16,15.8837]
[1722090415071,12.48,186.24,186.2,5.3705]
[1722090416672,5.3691,186.25,186.2,5.3705]
[1722090416971,17.8491,186.25,186.2,5.3705]
[1722090417911,17.8503,186.21,186.09,17.73302081]
[1722090418113,17.8503,186.21,186.14,12.48]
[1722090418329,17.8503,186.21,186.09,17.73302081]
[1722090418330,17.8506,186.2,186.13,12.48]
[1722090418619,5.3715,186.17,186.11,5.3729]
[1722090418805,12.48,186.18,186.09,16.659]
[1722090419009,13.55353351,186.18,186.14,5.3722]
[1722090419208,12.48,186.15,186.1,5.3734]
[1722090419515,12.48,186.15,186.08,12.48]
[1722090420323,13.55353351,186.14,186.05,16.659]
[1722090420617,12.48,186.12,186.06,5.3745]
[1722090420926,22.6454,186.17,186.08,12.48]
[1722090421126,22.6454,186.17,186.03,12.48]
[1722090421127,35.1254,186.17,186.1,12.48]
[1722090421298,35.1254,186.17,186.1,17.8531]
[1722090421299,6.44523351,186.16,186.1,17.8531]
[1722090421504,13.55353351,186.16,186.08,5.3739]
[1722090421802,12.48,186.15,186.08,12.48]
[1722090422007,35.1254,186.17,186.1,12.48]
[1722090422329,13.424,186.24,186.15,5.3718]
[1722090422330,17.8505,186.2,186.15,5.3718]
[1722090422498,17.8505,186.2,186.14,5.3722]
[1722090422694,12.48,186.17,186.1,12.48]
[1722090422890,12.48,186.14,186.09,5.3737]
[1722090423122,1.07353351,186.14,186.09,5.3737]
[1722090423309,1.07353351,186.19,186.12,5.3728]
[1722090423512,6.44463351,186.18,186.12,5.3728]
[1722090423815,1.07353351,186.17,186.12,5.3728]
[1722090424300,6.44493351,186.17,186.11,5.3731]
[1722090424713,5.3711,186.19,186.12,5.3728]
[1722090424903,5.3711,186.19,186.13,5.3724]
[1722090425112,22.6454,186.21,186.12,5.3728]
[1722090425113,6.44463351,186.18,186.12,5.3728]
[1722090425312,1.07353351,186.17,186.12,5.3728]
[1722090425510,6.44503351,186.17,186.05,41.659]
[1722090425814,5.3711,186.18,186.12,5.3727]
[1722090425995,1.07353351,186.17,186.05,41.659]
[1722090426199,5.3724,186.14,186.08,5.3739]
[1722090426420,13.4272,186.19,186.05,41.659]
[1722090426619,5.3721,186.15,186.05,41.659]
[1722090426940,20.0,186.18,186.05,41.659]
[1722090426941,6.44583351,186.14,186.05,16.659]
[1722090427224,5.3717,186.16,186.1,5.3734]
[1722090427429,1.07353351,186.18,186.05,16.659]
[1722090427623,1.07353351,186.17,186.05,16.659]
[1722090428009,21.07353351,186.17,186.08,5.374]
[1722090428634,11.8658,186.13,186.07,5.3742]
[1722090428831,1.07353351,186.12,186.0,21.9695]
[1722090429147,5.3729,186.12,186.0,21.9695]
[1722090429302,5.3732,186.11,186.05,5.3746]
[1722090429502,22.4166,186.13,186.05,5.3746]
[1722090429729,5.3735,186.1,186.05,5.3746]
[1722090430231,5.3735,186.1,185.96,47.0012]
[1722090430232,1.07353351,186.1,185.96,47.0012]
[1722090430430,5.3746,186.06,185.97,1.0749192]
[1722090430636,5.3743,186.07,186.01,5.3758]
[1722090430836,5.3743,186.07,186.02,5.3757]
[1722090431215,5.3743,186.07,185.97,1.0749192]
[1722090431419,1.07353351,186.09,186.01,5.3759]
[1722090431621,5.3745,186.07,186.01,5.3759]
[1722090431823,1.07353351,186.09,186.02,5.3756]